Workbook

Sheet Свод показателей НОКО
A1: Наименование образовательной организации | B1: Свод показателей НОКО 2018
B2: 1. Показатели, характеризующие открытость и доступность информации об образовательной организации | DA2: 2. Показатели, характеризующие комфортность условий предоставления образовательных услуг | ED2: 3. Показатели, характеризующие доступность услуг для инвалидов | FE2: 4. Показатели, характеризующие доброжелательность, вежливость работников организаций социальной сферы | FY2: 5. Показатели, характеризующие удовлетворённость условиями оказания услуг | GS2: Результат независимой оценки качества в образовательных организациях
B3: 1.1. Соответствие информации о деятельности образовательной организации, размещённой на общедоступных информационных ресурсах, её содержанию и порядку (форме), установленным нормативными правовыми актами | CC3: Значимость показателя 1.1. | CD3: Значение показателя 1.1. | CE3: 1.2. Обеспечение на официальном сайте образовательной организации наличия и функционирования дистанционных способов обратной связи и взаимодействия с получателями образовательных услуг | CM3: Значимость показателя 1.2. | CN3: Значение показателя 1.2. | CO3: 1.3. Доля получателей образовательных услуг, удовлетворённых открытостью, полнотой и доступностью информации о деятельности образовательной организации, размещённой на информационных стендах в помещении образовательной организации, на официальном сайте образовательной организации в сети "Интернет" | CW3: Значимость показателя 1.3. | CX3: Значение показателя 1.3. | CY3: Значимость критерия 1 | CZ3: Итоговая оценка по критерию 1 | DA3: 2.1. Обеспечение в образовательной организации комфортных условий для предоставления образовательных услуг | DH3: Значимость показателя 2.1. | DI3: Значение показателя 2.1. | DJ3: 2.2. Наличие возможности развития творческих способностей и интересов обучающихся | DT3: Значимость показателя 2.2. | DU3: Значение показателя 2.2. | DV3: 2.3. Доля участников образовательных отеошений, удовлетворённых комфортностью предоставления услуг образовательной организацией | DZ3: Значимость показателя 2.3. | EA3: Значение показателя 2.3. | EB3: Значимость критерия 2 | EC3: Итоговая оценка по критерию 2 | ED3: 3.1. Оборудование помещений образовательной организации и прилегающей к ней территории с учётом доступности для инвалидов | EK3: Значимость показателя 3.1. | EL3: Значение показателя 3.1. | EM3: 3.2. Обеспечение в образовательной организации условий доступности, инвалидам получать образовательные услуги наравне с другими | EU3: Значимость показателя 3.2. | EV3: Значение показателя 3.2. | EW3: 3.3. Доля получателей услуг, удовлетворённых доступностью услуг для инвалидов | FA3: Значимость показателя 3.3. | FB3: Значение показателя 3.3. | FC3: Значимость критерия 3 | FD3: Итоговая оценка по критерию 3 | FE3: 4.1. Доля получателей образовательных услуг, удовлетворённых доброжелательностью, вежливостью работников образовательной организации, обеспечивающих первичный контакт и информирование получателя услуги при непосредственном обращении | FI3: Значимость показателя 4.1. | FJ3: Значение показателя 4.1. | FK3: 4.2. Доля получателей образовательных услуг, удовлетворённых доброжелательностью, вежливостью работников образовательной организации, обеспечивающих непосредственное оказание услуги при обращении в образовательную организацию | FO3: Значимость показателя 4.2. | FP3: Значение показателя 4.2. | FQ3: 4.3. Доля получателей образовательных услуг, удовлетворённых доброжелательностью, вежливостью работников образовательной организации при использовании дистанционных форм взаимодействия | FU3: Значимость показателя 4.3. | FV3: Значение показателя 4.2. | FW3: Значимость критерия 4 | FX3: Итоговая оценка по критерию 4 | FY3: 5.1. Доля участников образовательных отношений, которые готовы рекомендовать образовательную организацию родственникам и знакомым | GC3: Значимость показателя 5.1. | GD3: Значение показателя 5.1. | GE3: 5.2. Доля участников образовательных отношений, удовлетворённых удобством графика работы образовательной организации | GI3: Значимость показателя 5.2. | GJ3: Значение показателя 5.2. | GK3: 5.3. Доля участников образовательных отношений, удовлетворённых в целом условиями оказания образовательных услуг в образовательной организации | GO3: Значимость показателя 5.3. | GP3: Значение показателя 5.3. | GQ3: Значимость критерия | GR3: Итоговая оценка по критерию 5
B4: 1.1.1. Соответствие информации о деятельности образовательной организации, размещённой на информационных стендах в помещении образовательной организации, её содержанию и порядку (форме), установленным нормативными правовыми актами | O4: 1.1.2. Соответствие информации о деятельности образовательной организации, размещённой на официальном сайте образовательной организации, её содержанию и порядку (форме), установленным нормативными правовыми актами | CE4: 1.2.1. Наличие и функционирование на официальном сайте образовательной организации информации о дистанционных способах взаимодействия с получателями образовательных услуг: | CO4: 1.3.1. Удовлетворённость качеством, полнотой и доступностью информации о деятельности образовательной организации, размещённой на стендах в помещении образовательной организации | CS4: 1.3.2. Удовлетворённость качеством, полнотой и доступностью информации о деятельности образовательной организации, размещённой на официальном сайте в сети "Интернет" | DA4: 2.1.1. Наличие комфортных условий для предоставления образовательных услуг | DJ4: 2.2.1. Наличие возможности развития творческих способностей и интересов обучающихся, их участие в конкурсах и олимпиадах | DV4: 2.3.1. Удовлетворённость качеством, полнотой и доступностью информации о деятельности образовательной организации, размещённой на стендах в помещении образовательной организации | ED4: 3.1.1. Наличие в помещениях образовательной организации и на прилегающей к ней территории: | EM4: 3.2.1. Наличие в образовательной организации условий доступности, позволяющих инвалидам получать образовательные услуги наравне с другими | EW4: 3.3.1. Удовлетворённость доступностью услуг для инвалидов | FE4: 4.1.1. Удовлетворённость доброжелательностью, вежливостью работников образовательной организации, обеспечивающих первичный контакт и информирование получателя услуги при непосредственном обращении в образовательную организацию | FK4: 4.2.1. Удовлетворённость доброжелательностью, вежливостью работников образовательной организации, обеспечивающих непосредственное оказание образовательной услуги при обращении в образовательную организацию | FQ4: 4.3.1. Удовлетворённость доброжелательностью, вежливостью работников образовательной организации при использовании дистанционных форм взаимодействия (по телефону, по электронной почте, с помощью электронных сервисов, подачи электронного обращения) | FY4: 5.1.1. Готовность участников образовательных отношений рекомендовать образовательную организацию родственникам и знакомым | GE4: 5.2.1. Удовлетворённость удобством графика работы образовательной организации | GK4: 5.3.1. Удовлетворённость условиями оказания образовательных услуг в образовательной организации
B5: 1.1.1.1. Официальное наименование образовательной организации, контактная информация образовательной организации | C5: 1.1.1.2. Информация о режиме и графике работы образовательной организации, режиме занятий | D5: 1.1.1.3. Устав образовательной организации | E5: 1.1.1.4. Лицензия на осуществление образовательной деятельности | F5: 1.1.1.5. Свидетельство о государственной аккредитации | G5: 1.1.1.6. Наименование основных образовательных программ, информация о сроке действия государственной аккредитации | H5: 1.1.1.7. Информация об уровнях образования и формах обучения | I5: 1.1.1.8. Правила (порядок) приёма, перевода, отчисления и восстановления обучающихся | J5: 1.1.1.9. Порядок оказания платных образовательных услуг, наличие документа, утверждающего стоимость предоставления услуг | K5: 1.1.1.10. Документ о текущем контроле успеваемости и промежуточной аттестации обучающихся | L5: Количество размещённых материалов | M5: Доля размещеннойинформации на стендах | N5: Значение параметра 1.1.1. в баллах (менее 70% - 0 баллов; 70-80% - 40 баллов; 81-90% - 60 баллов; более 90% - 100 баллов) | O5: Подраздел "Основные сведения" | T5: Подраздел "Структура и органы управления образовательной организацией | X5: Подраздел "Документы" | AL5: Подраздел "Образование" | AX5: Подраздел "Образовательные стандарты" | AY5: Подраздел "Руководство. Педагогический (научно-педагогический) состав" | BL5: Подраздел "Материально-техническое обеспечение и оснащённость образовательного процесса" | BT5: Подраздел "Стипендии и иные виды материальной поддержки" | BV5: Подраздел "Платные образовательные услуги" | BY5: Подраздел "Вкантные места для приёма (перевода)" | BZ5: Количество размещённых материалов | CA5: Доля размещения информации насайтах | CB5: Значение параметра 1.1.2. в баллах (менее 70% - 0 баллов; 70-80% - 40 баллов; 81-90% - 60 баллов; более 90% - 100 баллов) | CE5: 1.2.1.1. Телефон | CF5: 1.2.1.2. Электронная почта | CG5: 1.2.1.3. Электронные сервисы (форма для подачи электронного обращения(жалобы), получение консультации по оказываемым услугам и пр.) | CH5: 1.2.1.4. Раздел "Часто задаваемые вопросы" | CI5: 1.2.1.5. Техническая возможность выражения получателем услуг мнения о качестве условий оказания услуг образовательной организацией (наличие анкеты для опроса граждан или гиперссылки на неё) | CJ5: 1.2.1.6. Иной дистанционный способ взаимодействия | CK5: Количество дистанционных способов взаимодействия с получателями образовательных услуг | CL5: Значение параметра 1.2.1. в баллах (отсутствует - 0 баллов; наличие и функционирование способа - по 20 баллов); более 4 способов - 100 баллов) | CO5: Общее количество опрошенных | CP5: Количество опрошенных, удовлетворённых качеством, полнотой и доступностью информации о деятельности организации, размещённой на стендах образовательной организации | CQ5: Доля получателей услуг, удовлетворённых качеством, полнотой и доступностью информации о деятельности организации, размещённой на информационных стендах | CR5: Значение параметра 1.3.1. 1%=1 балл | CS5: Общее количество опрошенных | CT5: Количество опрошенных, удовлетворённых качеством, полнотой и доступностью информации о деятельности организации, размещённой на сайте в сети "Интернет" | CU5: Доля получателей услуг, удовлетворённых качеством, полнотой и доступностью информации о деятельности организации, размещённой на сайте в сети "Интернет" | CV5: Значение параметра 1.3.2. 1%=1 балл | DA5: 2.1.1.1. Наличие комфортной зоны отдыха (ожидания), оборудованной соответствующей мебелью | DB5: 2.1.1.2. Наличие и понятность навигации внутри образовательной организации | DC5: 2.1.1.3. Доступность питьевой воды | DD5: 2.1.1.4. Наличие и доступность санитарно-гигиенических помещений (чистота помещений, наличие мыла, туалетной бумаги и пр.) | DE5: 2.1.1.5. Санитарное состояние помещений образовательной организации | DF5: Количество комфортных условий для предоставления образовательных услуг | DG5: Значение параметра 2.1.1. в баллах (отсутствуют комфртные условия - 0 баллов; по 20 баллов за каждое условие, наличие 5 и более условия - 100 баллов) | DJ5: 2.2.1.1. Наличие кружков, спортивных секций, творческих коллективов, научных сообществ, клубов и других объединений | DK5: 2.2.1.2. Участие обучающихся в различных олимпиадах, смотрах, конкурсах | DO5: 2.2.1.3. Наличие победителей в смотрах, конкурсах, олимпиадах различного уровня: | DR5: Количество способов развития творческих способностей и интересов обучающихся | DS5: Значение параметра 2.2.1. в баллах (отсутствуют комфортные условия - 0 баллов; по 20 баллов за каждую возможность, наличие 5 и более возможностей - 100 баллов) | DV5: Общее количество опрошенных | DW5: Количество опрошенных, удовлетворённых комфортностью предоставления услуг образовательной организацией | DX5: Доля получателей услуг, удовлетворённых комфортностью предоставления услуг образовательной организацией | DY5: Значение параметра 2.3.1. 1%=1 балл | ED5: 3.1.1.1. Оборудованных входных групп пандусами (подъёмными платформами) | EE5: 3.1.1.2. Выделенных стоянок для автотранспортных средств инвалидов | EF5: 3.1.1.3. Адаптированных лифтов, поручней, расширенных дверных проёмов | EG5: 3.1.1.4. Специальных кресел-колясок | EH5: 3.1.1.5. Специально оборудованных санитарно-гигиенических помещений в организации социальной сферы | EI5: Количество условий доступности для инвалидов | EJ5: Значение параметра 3.1.1. в баллах (отсутствуют условия - 0 баллов; по 20 баллов за каждое условие, наличие 5 и более условия - 100 баллов) | EM5: 3.2.1.1. Дублирование для инвалидов по слуху и зрению звуковой и зрительной информации | EN5: 3.2.1.2. Дублирование надписей, знаков и иной текстовой и графической информации знаками, выполненными рельефно-точечным шрифтом Брайля | EO5: 3.2.1.3. Возможность предоставления инвалидам по слуху (слуху и зрению) услуг сурдопереводчика (тифлосурдопереводчика) | EP5: 3.2.1.4. Наличие альтернативной версии официального сайта образовательной организации в сети "Интернет" для инвалидов по зрению | EQ5: 3.2.1.5. Помощь, оказываемая работниками организациисоциальной сферы, прошедшими необходимое обучение (инструктирование) по сопровождению инвалидов в помещениях организации | ER5: 3.2.1.6. Наличие возможности предоставления образовательных услуг в дистанционном режиме или на дому | ES5: Количество условий доступности, позволяющих инвалидам получать образовательные услуги наравне с другими | ET5: Значение параметра 3.2.1. в баллах (отсутствуют условия - 0 баллов; по 20 баллов за каждое условие, наличие 5 и более условия - 100 баллов) | EW5: Общее количество опрошенных | EX5: Количество опрошенных, удовлетворённых доступностью услуг для инвалидов | EY5: Доля получателей услуг, удовлетворённых доступностью услуг для инвалидов | EZ5: Значение параметра 3.3.1. 1%=1 балл | FE5: Общее количество опрошенных | FF5: Количество опрошенных, удовлетворённых доброжелательностью, вежливостью работников, обеспечивающих первичный контакт и информирование получателя услуг | FG5: Доля получателей услуг, удовлетворённых доброжелательностью, вежливостью работников, обеспечивающих первичный контакт и информирование получателя услуг | FH5: Значение параметра 4.1.1. 1%=1 балл | FK5: Общее количество опрошенных | FL5: Количество опрошенных, удовлетворённых доброжелательностью, вежливостью работников образовательной организации, обеспечивающих непосредственное оказание услуги при обращении в образовательную организацию | FM5: Доля получателей услуг, удовлетворённых доброжелательностью, вежливостью работников образовательной организации, обеспечивающих непосредственное оказание услуги при обращении в образовательную организацию | FN5: Значение параметра 4.2.1. 1%=1 балл | FQ5: Общее количество опрошенных | FR5: Количество опрошенных, удовлетворённых доброжелательностью, вежливостью работников образовательной организации при использовании дистанционных форм взаимодействия | FS5: Доля получателей образовательных услуг, удовлетворённых доброжелательностью, вежливостью работников образовательной организации при использовании дистанционных форм взаимодействия | FT5: Значение параметра 4.3.1. 1%=1 балл | FY5: Общее количество опрошенных | FZ5: Количество опрошенных, которые готовы рекомендовать образовательную организацию родственникам и знакомым | GA5: Доля участников образовательных отношений, которые готовы рекомендовать образовательную организацию родственникам и знакомым | GB5: Значение параметра 5.1.1. 1%=1 балл | GE5: Общее количество опрошенных | GF5: Количество опрошенных, удовлетворённых удобством графика работы образовательной организации | GG5: Доля участников образовательных отношений, удовлетворённых удобством графика работы образовательной организации | GH5: Значение параметра 5.2.1. 1%=1 балл | GK5: Общее количество опрошенных | GL5: Количество опрошенных, удовлетворённых в целом условиями оказания образовательных услуг в образовательной организации | GM5: Доля участников образовательных отношений, удовлетворённых в целом условиями оказания образовательных услуг в образовательной организации | GN5: Значение параметра 5.3.1. 1%=1 балл
O6: 1.1.2.1. Информация об официальном наименовании образовательной организации и её дате создания | P6: 1.1.2.2. Информация об учредителе (-ях) образовательной организации | Q6: 1.1.2.3. Информация о месте нахождения образовательной организации и её филиалов (при наличии) | R6: 1.1.2.4. Информация о режиме и графике работы образовательной организации | S6: 1.1.2.5. Контактная информация (телефон, адрес электронной почты) | T6: 1.1.2.6. Информация о наименовании структурных подразделений (органов управления) | U6: 1.1.2.7. Информация о руководителях структурных подразделений | V6: 1.1.2.8. Информация о местах нахождения структурных подразделений | W6: 1.1.2.9. Наличие положений о структурных подразделениях | X6: 1.1.2.10. Устав образовательной организации (копия) | Y6: 1.1.2.11. Лицензия на осуществление образовательной деятельности с приложениями (копия) | Z6: 1.1.2.12. Свидетельство о государственной аккредитации с приложениями (копия) | AA6: 1.1.2.13. План финансово-хозяйственной деятельности (на текущий год) | AB6: 1.1.2.14. Отчёт о выполнении плана финансово-хозяйственной деятельности (за прошлый год) | AC6: 1.1.2.15. Правила внутреннего распорядка обучающихся | AD6: 1.1.2.16. Правила внутреннего трудового распорядка | AE6: 1.1.2.17. Коллективный договор | AF6: 1.1.2.18. Отчёт о результатах самообследования | AG6: 1.1.2.19. Документ о порядке оказания платных образовательных услуг | AH6: 1.1.2.20. Образец договора об оказании платных образовательных услуг | AI6: 1.1.2.21. Документ об утверждении стоимости обучения по каждой образовательной программе | AJ6: 1.1.2.22. Документ о текущем контроле успеваемости и промежуточной аттестации | AK6: 1.1.2.23. Предписания органов, осуществляющих государственный контроль (надзор) в сфере образования, отчёты об исполнении таких предписаний | AL6: 1.1.2.24. Информация о реализуемых уровнях образования | AM6: 1.1.2.25. Информация о формах обучения | AN6: 1.1.2.26. Информация о нормативных сроках обучения | AO6: 1.1.2.27. Информация о сроке действия государственной аккредитации образовательной программы | AP6: 1.1.2.28. Информация об описании образовательной программы с приложением её копии | AQ6: 1.1.2.29. Информация об учебном плане с приложением его копии | AR6: 1.1.2.30. Информация об аннотации к рабочим программа дисциплин (по каждой дисциплине в составе образовательной программы) с приложением их копий | AS6: 1.1.2.31. Информация о календарном учебном графике с приложением его копии | AT6: 1.1.2.32. Информация о методических и иных документах, разработанных образовательной организацией | AU6: 1.1.2.33. Информация о реализуемых образовательных программах с указанием учебных предметов, курсов, дисциплин (модулей), практики | AV6: 1.1.2.34. Информация о численности обучающихся по реализуемым образовательным программам | AW6: 1.1.2.35. Информация о языках, на которых осуществляется образование (обучение) | AX6: 1.1.2.36. Информация о федеральных государственных образовательных стандартах и об образовательных стандартах (копия или гиперссылка) | AY6: 1.1.2.37. ФИО руководителя образовательной организации | AZ6: 1.1.2.38. Должность руководителя образовательной организации | BA6: 1.1.2.39. Контактный телефон, адрес электронной почты руководителя образовательной организации | BB6: 1.1.2.40. ФИО заместителей руководителя, руководителей филиалов | BC6: 1.1.2.41. Должности заместителей руководителя, руководителей филиалов | BD6: 1.1.2.42. Контактный телефон, адрес электронной почты заместителей руководителя, руководителей филиалов | BE6: 1.1.2.43. ФИО педагогических работников | BF6: 1.1.2.44. Должность педагогических работников | BG6: 1.1.2.45. Преподаваемые педагогическими работниками дисциплины | BH6: 1.1.2.46. Наименование направления подготовки и (или) специальности педагогических работников | BI6: 1.1.2.47. Данные о повышении квалификации и (или) профессиональной переподготовке (при наличии) педагогических работников | BJ6: 1.1.2.48. Общий стаж работы педагогического работника | BK6: 1.1.2.49. Стаж работы по специальности педагогического работника | BL6: 1.1.2.50. Сведения о наличии оборудованных учебных кабинетов | BM6: 1.1.2.51. Сведения о наличии объектов для проведения практических занятий | BN6: 1.1.2.52. Сведения о наличии библиотек | BO6: 1.1.2.53. Сведения о наличии объектов спорта | BP6: 1.1.2.54. Сведения о наличии средств обучения и воспитания | BQ6: 1.1.2.55. Сведения об условиях питания и охраны здоровья обучающихся | BR6: 1.1.2.56. Сведения о доступе к информационным системам и ИТ сетям | BS6: 1.1.2.57. Сведения об электронных образовательных ресурсах, к которым обеспечивается доступ обучающихся | BT6: 1.1.2.58. Информация о наличии и условиях предоставления стипендий | BU6: 1.1.2.59. Информация о наличии общежития, интерната | BV6: 1.1.2.60. Правила (порядок) приёма обучающихся | BW6: 1.1.2.61. Порядок перевода, отчисления и восстановления обучающихся | BX6: 1.1.2.62. Документ, утверждающий стоимость платных образовательных услуг | BY6: 1.1.2.63. Информация о количестве вакантных мест для приёма (перевода) по каждой образовательной программе, специальности, направлению подготовки | DK6: Общее количество обучающихся | DL6: Количество обучающихся, принявших участие в различных олимпиадах, смотрах, конкурсах | DM6: Доля обучающихся (от общего количества обучающихся), принявших участие в различных олимпиадах, смотрах, конкурсах | DN6: Значение параметра 2.2.1.2. (менее 10% - 0 баллов, от 10 до 49% - 1 балл; 50% и более - 2 балла) | DO6: Региональный | DP6: Федеральный | DQ6: Международный
A8: Максимальное значение: | B8: 1 | C8: 1 | D8: 1 | E8: 1 | F8: 1 | G8: 1 | H8: 1 | I8: 1 | J8: 1 | K8: 1 | L8: 10 | M8: 1 | N8: 100 | O8: 1 | P8: 1 | Q8: 1 | R8: 1 | S8: 1 | T8: 1 | U8: 1 | V8: 1 | W8: 1 | X8: 1 | Y8: 1 | Z8: 1 | AA8: 1 | AB8: 1 | AC8: 1 | AD8: 1 | AE8: 1 | AF8: 1 | AG8: 1 | AH8: 1 | AI8: 1 | AJ8: 1 | AK8: 1 | AL8: 1 | AM8: 1 | AN8: 1 | AO8: 1 | AP8: 1 | AQ8: 1 | AR8: 1 | AS8: 1 | AT8: 1 | AU8: 1 | AV8: 1 | AW8: 1 | AX8: 1 | AY8: 1 | AZ8: 1 | BA8: 1 | BB8: 1 | BC8: 1 | BD8: 1 | BE8: 1 | BF8: 1 | BG8: 1 | BH8: 1 | BI8: 1 | BJ8: 1 | BK8: 1 | BL8: 1 | BM8: 1 | BN8: 1 | BO8: 1 | BP8: 1 | BQ8: 1 | BR8: 1 | BS8: 1 | BT8: 1 | BU8: 1 | BV8: 1 | BW8: 1 | BX8: 1 | BY8: 1 | BZ8: 63 | CA8: 1 | CB8: 100 | CC8: 0.3 | CD8: 100 | CE8: 1 | CF8: 1 | CG8: 1 | CH8: 1 | CI8: 1 | CJ8: 1 | CK8: 6 | CL8: 100 | CM8: 0.3 | CN8: 100 | CQ8: 1 | CR8: 100 | CU8: 1 | CV8: 100 | CW8: 0.4 | CX8: 100 | CY8: 0.2 | CZ8: 100 | DA8: 1 | DB8: 1 | DC8: 1 | DD8: 1 | DE8: 1 | DF8: 5 | DG8: 100 | DH8: 0.3 | DI8: 100 | DJ8: 1 | DN8: 2 | DO8: 1 | DP8: 1 | DQ8: 1 | DR8: 6 | DS8: 100 | DT8: 0.4 | DU8: 100 | DX8: 1 | DY8: 100 | DZ8: 0.3 | EA8: 100 | EB8: 0.2 | EC8: 100 | ED8: 1 | EE8: 1 | EF8: 1 | EG8: 1 | EH8: 1 | EI8: 5 | EJ8: 100 | EK8: 0.3 | EL8: 100 | EM8: 1 | EN8: 1 | EO8: 1 | EP8: 1 | EQ8: 1 | ER8: 1 | ES8: 6 | ET8: 100 | EU8: 0.4 | EV8: 100 | EY8: 1 | EZ8: 100 | FA8: 0.3 | FB8: 100 | FC8: 0.15 | FD8: 100 | FG8: 1 | FH8: 100 | FI8: 0.4 | FJ8: 100 | FM8: 1 | FN8: 100 | FO8: 0.4 | FP8: 100 | FS8: 1 | FT8: 100 | FU8: 0.2 | FV8: 100 | FW8: 0.15 | FX8: 100 | GA8: 1 | GB8: 100 | GC8: 0.2 | GD8: 100 | GG8: 1 | GH8: 100 | GI8: 0.3 | GJ8: 100 | GM8: 1 | GN8: 100 | GO8: 0.5 | GP8: 100 | GQ8: 0.3 | GR8: 100 | GS8: 100
A9: Абс (пример) | B9: 1 | C9: 0 | D9: 1 | E9: 1 | F9: 1 | G9: 1 | H9: 1 | I9: 0 | J9: 1 | K9: 0 | L9: =SUM(B9:K9) -> 7 | M9: =L9/L8*100 -> 70 | N9: 40 | O9: 1 | P9: 0 | Q9: 1 | R9: 0 | S9: 1 | T9: 1 | U9: 1 | V9: 1 | W9: 1 | X9: 1 | Y9: 0 | Z9: 1 | AA9: 1 | AB9: 1 | AC9: 1 | AD9: 1 | AE9: 1 | AF9: 0 | AG9: 1 | AH9: 0 | AI9: 1 | AJ9: 0 | AK9: 1 | AL9: 0 | AM9: 1 | AN9: 0 | AO9: 0 | AP9: 0 | AQ9: 0 | AR9: 1 | AS9: 1 | AT9: 1 | AU9: 1 | AV9: 1 | AW9: 1 | AX9: 1 | AY9: 0 | AZ9: 1 | BA9: 0 | BB9: 1 | BC9: 0 | BD9: 1 | BE9: 1 | BF9: 1 | BG9: 0 | BH9: 1 | BI9: 1 | BJ9: 1 | BK9: 0 | BL9: 1 | BM9: 1 | BN9: 1 | BO9: 0 | BP9: 1 | BQ9: 0 | BR9: 1 | BS9: 1 | BT9: 1 | BU9: 1 | BV9: 1 | BW9: 1 | BX9: 1 | BY9: 1 | BZ9: =SUM(O9:BY9) -> 45 | CA9: =BZ9/BZ8*100 -> 71.42857143 | CB9: 40 | CD9: =(N9+CB9)/2 -> 40 | CE9: 1 | CF9: 0 | CG9: 0 | CH9: 1 | CI9: 1 | CJ9: 1 | CK9: =SUM(CE9:CJ9) -> 4 | CL9: 80 | CN9: =CL9 -> 80 | CO9: 80 | CP9: 60 | CQ9: =CP9/CO9*100 -> 75 | CR9: =CQ9 -> 75 | CS9: 80 | CT9: 60 | CU9: =CT9/CS9*100 -> 75 | CV9: =CU9 -> 75 | CX9: =(CR9+CV9)/2 -> 75 | CZ9: =(CC8*CD9)+(CM8*CN9)+(CW8*CX9) -> 66 | DA9: 1 | DB9: 0 | DC9: 1 | DD9: 1 | DE9: 1 | DF9: =SUM(DA9:DE9) -> 4 | DG9: 80 | DI9: =DG9 -> 80 | DJ9: 1 | DK9: 200 | DL9: 130 | DM9: =DL9/DK9*100 -> 65 | DN9: 2 | DO9: 1 | DP9: 0 | DQ9: 0 | DR9: =DJ9+DN9+DO9+DP9+DQ9 -> 4 | DS9: 100 | DU9: =DS9 -> 100 | DV9: 80 | DW9: 50 | DX9: =DW9/DV9*100 -> 62.5 | DY9: =DX9 -> 62.5 | EA9: =DY9 -> 62.5 | EC9: =(DH8*DI9)+(DT8*DU9)+(DZ8*EA9) -> 82.75 | ED9: 1 | EE9: 0 | EF9: 1 | EG9: 1 | EH9: 1 | EI9: =SUM(ED9:EH9) -> 4 | EJ9: 80 | EL9: =EJ9 -> 80 | EM9: 1 | EN9: 1 | EO9: 1 | EP9: 1 | EQ9: 0 | ER9: 0 | ES9: =SUM(EM9:ER9) -> 4 | ET9: 80 | EV9: =ET9 -> 80 | EW9: 80 | EX9: 65 | EY9: =EX9/EW9*100 -> 81.25 | EZ9: =EY9 -> 81.25 | FB9: =EZ9 -> 81.25 | FD9: =(EK8*EL9)+(EU8*EV9)+(FA8*FB9) -> 80.375 | FE9: 80 | FF9: 77 | FG9: =FF9/FE9*100 -> 96.25 | FH9: =FG9 -> 96.25 | FJ9: =FH9 -> 96.25 | FK9: 80 | FL9: 51 | FM9: =FL9/FK9*100 -> 63.75 | FN9: =FM9 -> 63.75 | FP9: =FN9 -> 63.75 | FQ9: 80 | FR9: 46 | FS9: =FR9/FQ9*100 -> 57.5 | FT9: =FS9 -> 57.5 | FV9: =FT9 -> 57.5 | FX9: =(FI8*FJ9)+(FO8*FP9)+(FU8*FV9) -> 75.5 | FY9: 80 | FZ9: 63 | GA9: =FZ9/FY9*100 -> 78.75 | GB9: =GA9 -> 78.75 | GD9: =GB9 -> 78.75 | GE9: 80 | GF9: 39 | GG9: =GF9/GE9*100 -> 48.75 | GH9: =GG9 -> 48.75 | GJ9: =GH9 -> 48.75 | GK9: 80 | GL9: 41 | GM9: =GL9/GK9*100 -> 51.25 | GN9: =GM9 -> 51.25 | GP9: =GN9 -> 51.25 | GR9: =(GC8*GD9)+(GI8*GJ9)+(GO8*GP9) -> 56 | GS9: =(CY8*CZ9)+(EB8*EC9)+(FC8*FD9)+(FW8*FX9)+(GQ8*GR9) -> 69.93125
A10: Муниципальное автономное некоммерческое учреждение дополниетльбного образования детей Дом художественного творчества детей муницпального образования Кореновский район | B10: 1 | C10: 1 | D10: 1 | E10: 1 | F10: 1 | G10: 1 | H10: 1 | I10: 1 | J10: 1 | K10: 1 | L10: =SUM(B10:K10) -> 10 | M10: =L10/$L$8*100 -> 100 | N10: =IF(M10<70,0,IF(AND(M10>=70,M10<80),40,IF(AND(M10>=80,M10<90),60,IF(M10>=90,100)))) -> 100 | O10: 1 | P10: 1 | R10: 1 | S10: 1 | T10: 0 | U10: 0 | V10: 0 | W10: 0 | X10: 1 | Y10: 1 | Z10: 1 | AA10: 1 | AB10: 1 | AC10: 1 | AD10: 1 | AE10: 1 | AF10: 1 | AG10: 1 | AH10: 1 | AI10: 1 | AJ10: 1 | AK10: 1 | AL10: 0 | AM10: 1 | AN10: 1 | AO10: 1 | AP10: 1 | AQ10: 1 | AR10: 1 | AS10: 1 | AT10: 1 | AU10: 1 | AV10: 1 | AW10: 1 | AX10: 0 | AY10: 1 | AZ10: 1 | BA10: 1 | BB10: 1 | BC10: 1 | BD10: 1 | BE10: 1 | BF10: 1 | BH10: 1 | BI10: 1 | BJ10: 1 | BK10: 1 | BL10: 1 | BM10: 1 | BN10: 0 | BO10: 0 | BP10: 1 | BQ10: 0 | BR10: 0 | BS10: 0 | BT10: 0 | BU10: 0 | BV10: 1 | BW10: 1 | BX10: 1 | BY10: 0 | BZ10: =SUM(O10:BY10) -> 47 | CA10: =BZ10/$BZ$8*100 -> 74.6031746 | CB10: =IF(CA10<70,0,IF(AND(CA10>=70,CA10<80),40,IF(AND(CA10>=80,CA10<90),60,IF(CA10>=90,100)))) -> 40 | CD10: =(N10+CB10)/2 -> 70 | CE10: 1 | CF10: 1 | CG10: 0 | CH10: 0 | CI10: 1 | CJ10: 1 | CK10: =SUM(CE10:CJ10) -> 4 | CL10: =IF(CK10=0,0,IF(AND(CK10>=1,CK10<=4),CK10*20,IF(CK10>4,100))) -> 80 | CN10: =CL10 -> 80 | CO10: 50 | CQ10: =CP10/CO10*100 -> 0 | CR10: =CQ10 -> 0 | CS10: 50 | CT10: 46 | CU10: =CT10/CS10*100 -> 92 | CV10: =CU10 -> 92 | CX10: =(CR10+CV10)/2 -> 46 | CZ10: =($CC$8*CD10)+($CM$8*CN10)+($CW$8*CX10) -> 63.4 | DA10: 1 | DB10: 0 | DC10: 1 | DD10: 1 | DE10: 1 | DF10: =SUM(DA10:DE10) -> 4 | DG10: =IF(DF10=0,0,IF(AND(DF10>=1,DF10<5),DF10*20,IF(DF10>=5,100))) -> 80 | DI10: =DG10 -> 80 | DJ10: 1 | DK10: 1954 | DL10: 2173 | DM10: =DL10/DK10*100 -> 111.2077789 | DN10: =IF(DM10<10,0,IF(AND(DM10>=10,DM10<50),1,IF(DM10>=50,2))) -> 2 | DO10: 14 | DP10: 75 | DQ10: 200 | DR10: =DJ10+DN10+DO10+DP10+DQ10 -> 292 | DS10: =IF(DR10=0,0,IF(AND(DR10>=1,DR10<5),DR10*20,IF(DR10>=5,100))) -> 100 | DU10: =DS10 -> 100 | DX10: =DW10/DV10*100 ->  | DY10: =DX10 ->  | EA10: =DY10 ->  | EC10: =($DH$8*DI10)+($DT$8*DU10)+($DZ$8*EA10) ->  | EI10: =SUM(ED10:EH10) -> 0 | EJ10: =IF(EI10=0,0,IF(AND(EI10>=1,EI10<5),EI10*20,IF(EI10>=5,100))) -> 0 | EL10: =EJ10 -> 0 | EM10: 0 | EN10: 0 | EO10: 0 | EP10: 0 | EQ10: 0 | ER10: 0 | ES10: =SUM(EM10:ER10) -> 0 | ET10: =IF(ES10=0,0,IF(AND(ES10>=1,ES10<5),ES10*20,IF(ES10>=5,100))) -> 0 | EV10: =ET10 -> 0 | EW10: 50 | EX10: 27 | EY10: =EX10/EW10*100 -> 54 | EZ10: =EY10 -> 54 | FB10: =EZ10 -> 54 | FD10: =($EK$8*EL10)+($EU$8*EV10)+($FA$8*FB10) -> 16.2 | FG10: =FF10*FE10/100 -> 0 | FH10: =FG10 -> 0 | FJ10: =FH10 -> 0 | FK10: 50 | FL10: 50 | FM10: =FL10/FK10*100 -> 100 | FN10: =FM10 -> 100 | FP10: =FN10 -> 100 | FS10: =FR10/FQ10*100 ->  | FT10: =FS10 ->  | FV10: =FT10 ->  | FX10: =($FI$8*FJ10)+($FO$8*FP10)+($FU$8*FV10) ->  | GA10: =FZ10/FY10*100 ->  | GB10: =GA10 ->  | GD10: =GB10 ->  | GE10: 50 | GF10: 50 | GG10: =GF10/GE10*100 -> 100 | GH10: =GG10 -> 100 | GJ10: =GH10 -> 100 | GK10: 50 | GL10: 50 | GM10: =GL10/GK10*100 -> 100 | GN10: =GM10 -> 100 | GP10: =GN10 -> 100 | GR10: =($GC$8*GD10)+($GI$8*GJ10)+($GO$8*GP10) ->  | GS10: =($CY$8*CZ10)+($EB$8*EC10)+($FC$8*FD10)+($FW$8*FX10)+($GQ$8*GR10) -> 
A14: Инструкция по заполнению таблицы "Свод показателей НОКО":
A15: 1. Первая строка, окрашенная в голубой цвет, дана в качестве примера, её удалять не нужно.
A16: 2. Вам необходимо заполнять только ячейки белого цвета.
A17: 3. Ячейки сиреневого цвета заполнять не нужно. В них уже внесены все необходимые формулы для расчёта. В случае, если в данную таблицу занесено несколько образовательных организаций, ячейку с формулой нужно протянуть вниз, кликнув на неё, и потянуть за зелёный квадрат внизу ячейки.
A18: 4. По показателям 1.3., 2.3., 3.3., 4.1., 4.2., 4.3., 5.1., 5.2., 5.3. количество удовлетворённых получателей образовательных услуг проставляется по результатам опроса, полученные результаты должны соответствовать результатам во вкладке "Опрос".

Sheet Показатели и критерии
A1: Значения показателей и критериев с учётом коэффициентов значимости
A2: Наименование образовательной организации | B2: Показатель 1.1. | C2: Показатель 1.2. | D2: Показатель 1.3. | E2: Критерий 1 | F2: Показатель 2.1. | G2: Показатель 2.2. | H2: Показатель 2.3. | I2: Критерий 2 | J2: Показатель 3.1. | K2: Показатель 3.2. | L2: Показатель 3.3. | M2: Критерий 3 | N2: Показатель 4.1. | O2: Показатель 4.2. | P2: Показатель 4.3. | Q2: Критерий 4 | R2: Показатель 5.1. | S2: Показатель 5.2. | T2: Показатель 5.3. | U2: Критерий 5 | V2: ИТОГО
A3: Коэффициент значимости: | B3: 0.3 | C3: 0.3 | D3: 0.4 | E3: 0.2 | F3: 0.3 | G3: 0.4 | H3: 0.3 | I3: 0.2 | J3: 0.3 | K3: 0.4 | L3: 0.3 | M3: 0.15 | N3: 0.4 | O3: 0.4 | P3: 0.2 | Q3: 0.15 | R3: 0.2 | S3: 0.3 | T3: 0.5 | U3: 0.3
A4: Абс(пример) | B4: ='Свод показателей НОКО'!CD9*$B$3 -> 12 | C4: ='Свод показателей НОКО'!CN9*$C$3 -> 24 | D4: ='Свод показателей НОКО'!CV9*$D$3 -> 30 | E4: ='Свод показателей НОКО'!CZ9*$E$3 -> 13.2 | F4: ='Свод показателей НОКО'!DI9*$F$3 -> 24 | G4: ='Свод показателей НОКО'!DU9*$G$3 -> 40 | H4: ='Свод показателей НОКО'!EA9*$H$3 -> 18.75 | I4: ='Свод показателей НОКО'!EC9*$I$3 -> 16.55 | J4: ='Свод показателей НОКО'!EL9*$J$3 -> 24 | K4: ='Свод показателей НОКО'!EV9*$K$3 -> 32 | L4: ='Свод показателей НОКО'!FB9*$L$3 -> 24.375 | M4: ='Свод показателей НОКО'!FD9*$M$3 -> 12.05625 | N4: ='Свод показателей НОКО'!FJ9*$N$3 -> 38.5 | O4: ='Свод показателей НОКО'!FP9*$O$3 -> 25.5 | P4: ='Свод показателей НОКО'!FV9*$P$3 -> 11.5 | Q4: ='Свод показателей НОКО'!FX9*$Q$3 -> 11.325 | R4: ='Свод показателей НОКО'!GD9*$R$3 -> 15.75 | S4: ='Свод показателей НОКО'!GJ9*$S$3 -> 14.625 | T4: ='Свод показателей НОКО'!GP9*$T$3 -> 25.625 | U4: ='Свод показателей НОКО'!GR9*$U$3 -> 16.8 | V4: ='Свод показателей НОКО'!GS9 -> 69.93125
A5: ='Свод показателей НОКО'!A10 -> Муниципальное автономное некоммерческое учреждение дополниетльбного образования детей Дом художественного творчества детей муницпального образования Кореновский район | B5: ='Свод показателей НОКО'!CD10*$B$3 -> 21 | C5: ='Свод показателей НОКО'!CN10*$C$3 -> 24 | D5: ='Свод показателей НОКО'!CV10*$D$3 -> 36.8 | E5: ='Свод показателей НОКО'!CZ10*$E$3 -> 12.68 | F5: ='Свод показателей НОКО'!DI10*$F$3 -> 24 | G5: ='Свод показателей НОКО'!DU10*$G$3 -> 40 | H5: ='Свод показателей НОКО'!EA10*$H$3 ->  | I5: ='Свод показателей НОКО'!EC10*$I$3 ->  | J5: ='Свод показателей НОКО'!EL10*$J$3 -> 0 | K5: ='Свод показателей НОКО'!EV10*$K$3 -> 0 | L5: ='Свод показателей НОКО'!FB10*$L$3 -> 16.2 | M5: ='Свод показателей НОКО'!FD10*$M$3 -> 2.43 | N5: ='Свод показателей НОКО'!FJ10*$N$3 -> 0 | O5: ='Свод показателей НОКО'!FP10*$O$3 -> 40 | P5: ='Свод показателей НОКО'!FV10*$P$3 ->  | Q5: ='Свод показателей НОКО'!FX10*$Q$3 ->  | R5: ='Свод показателей НОКО'!GD10*$R$3 ->  | S5: ='Свод показателей НОКО'!GJ10*$S$3 -> 30 | T5: ='Свод показателей НОКО'!GP10*$T$3 -> 50 | U5: ='Свод показателей НОКО'!GR10*$U$3 ->  | V5: ='Свод показателей НОКО'!GS10 -> 
A14: Инструкция по заполнению таблицы (в случае, если автоматическое заполнение таблицы не сработает):
A15: 1. Значение каждого показателя из таблицы "Свод показателей НОКО" умножается на коэффициент значимости показателя.
A16: 2. Значение каждого критерия из таблицы "Свод показателей НОКО" умножается на коэффициент значимости критерия.
A17: 3. Сумма значений критериев с учётом коэффициента значимости критерия определяет результат независимой оценки (ячейка "ИТОГО").
A18: 4. В данной таблице сумма показателей не равна значению критерия.
A19: 5. Первая строка, окрашенная в голубой цвет, дана в качестве примера, её удалять не нужно.
A20: 6. В случае, если в данную таблицу занесено несколько образовательных организаций, ячейку с формулой, окрашенную в голубой цвет, нужно протянуть вниз, кликнув на неё, и потянуть за зелёный квадрат внизу ячейки.

Sheet Опрос
A1: Наименование образовательной организации: | C1: Образовательная организация Абс | E1: Муниципальное автономное некоммерческое учреждение дополниетльбного образования детей Дом художественного творчества детей муницпального образования Кореновский район
A2: Количество респондентов: | C2: 80 | E2: 50
A3: Вопрос | B3: Баллы | C3: Количество ответов | D3: Количество ответов от 5 баллов | E3: Количество ответов | F3: Количество ответов от 5 баллов
A4: 1.3. Полнота и доступность информации о деятельности образовательной организации, размещенной на информационных стендах и официальном сайте организации. | B4: 0 | C4: 5 | E4: 0
B5: 5 | C5: 35 | D5: =C5+C6 -> 75 | F5: =E5+E6 -> 50
B6: 10 | C6: 40 | E6: 50
A7: Сумма ответов: | C7: =C4+C5+C6 -> 80 | E7: =E4+E5+E6 -> 50
A8: Доля удовлетворённых по показателю 1.3.: | D8: =D5/C7*100 -> 93.75 | F8: =F5/E7*100 -> 100
A9: 2.3. Удовлетворенность комфортностью условий предоставления услуг. | B9: 0 | C9: 5 | E9: 0
B10: 5 | C10: 7 | D10: =C10+C11 -> 75 | E10: 3 | F10: =E10+E11 -> 50
B11: 10 | C11: 68 | E11: 47
A12: Сумма ответов: | C12: =C9+C10+C11 -> 80 | E12: =E9+E10+E11 -> 50
A13: Доля удовлетворённых по показателю 2.3.: | D13: =D10/C12*100 -> 93.75 | F13: =F10/E12*100 -> 100
A14: 3.3. Удовлетворенность доступностью образовательных услуг для лиц с ограниченными возможностями здоровья и инвалидов. | B14: 0 | C14: 13 | E14: 23
B15: 5 | C15: 29 | D15: =C15+C16 -> 67 | E15: 2 | F15: =E15+E16 -> 27
B16: 10 | C16: 38 | E16: 25
A17: Сумма ответов: | C17: =C14+C15+C16 -> 80 | E17: =E14+E15+E16 -> 50
A18: Доля удовлетворённых по показателю 3.3.: | D18: =D15/C17*100 -> 83.75 | F18: =F15/E17*100 -> 54
A19: 4.1. Доброжелательность, вежливость работников образовательной организации, обеспечивающих первичный контакт и получателя услуги при обращении в ОО | B19: 0 | C19: 16 | E19: 0
B20: 5 | C20: 41 | D20: =C20+C21 -> 64 | E20: 0 | F20: =E20+E21 -> 50
B21: 10 | C21: 23 | E21: 50
A22: Сумма ответов: | C22: =C19+C20+C21 -> 80 | E22: =E19+E20+E21 -> 50
A23: Доля удовлетворённых по показателю 4.1.: | D23: =D20/C22*100 -> 80 | F23: =F20/E22*100 -> 100
A24: 4.2. Доброжелательность, вежливость работников образовательной организации, обеспечивающих оказание образовательной услуги при обращении в ОО. | B24: 0 | C24: 39 | E24: 0
B25: 5 | C25: 11 | D25: =C25+C26 -> 41 | E25: 0 | F25: =E25+E26 -> 50
B26: 10 | C26: 30 | E26: 50
A27: Сумма ответов: | C27: =C24+C25+C26 -> 80 | E27: =E24+E25+E26 -> 50
A28: Доля удовлетворённых по показателю 4.2.: | D28: =D25/C27*100 -> 51.25 | F28: =F25/E27*100 -> 100
A29: 4.3. Доброжелательность, вежливость работников образовательной организации при использовании дистанционных форм взаимодействия. | B29: 0 | C29: 12 | E29: 0
B30: 5 | C30: 14 | D30: =C30+C31 -> 68 | E30: 0 | F30: =E30+E31 -> 0
B31: 10 | C31: 54 | E31: 0
A32: Сумма ответов: | C32: =C29+C30+C31 -> 80 | E32: =E29+E30+E31 -> 0
A33: Доля удовлетворённых по показателю 4.3.: | D33: =D30/C32*100 -> 85 | F33: =F30/E32*100 -> 
A34: 5.1. Готовность рекомендовать образовательную организацию родственникам и знакомым. | B34: 0 | C34: 6 | E34: 4
B35: 5 | C35: 28 | D35: =C35+C36 -> 74 | E35: 15 | F35: =E35+E36 -> 46
B36: 10 | C36: 46 | E36: 31
A37: Сумма ответов: | C37: =C34+C35+C36 -> 80 | E37: =E34+E35+E36 -> 50
A38: Доля удовлетворённых по показателю 5.1.: | D38: =D35/C37*100 -> 92.5 | F38: =F35/E37*100 -> 92
A39: 5.2. Удовлетворенность удобством графика работы образовательной организации. | B39: 0 | C39: 19 | E39: 0
B40: 5 | C40: 10 | D40: =C40+C41 -> 61 | E40: 0 | F40: =E40+E41 -> 50
B41: 10 | C41: 51 | E41: 50
A42: Сумма ответов: | C42: =C39+C40+C41 -> 80 | E42: =E39+E40+E41 -> 50
A43: Доля удовлетворённых по показателю 5.2.: | D43: =D40/C42*100 -> 76.25 | F43: =F40/E42*100 -> 100
A44: 5.3. Доброжелательность, вежливость работников образовательной организации при использовании дистанционных форм взаимодействия. | B44: 0 | C44: 17 | E44: 0
B45: 5 | C45: 18 | D45: =C45+C46 -> 63 | E45: 0 | F45: =E45+E46 -> 0
B46: 10 | C46: 45 | E46: 0
A47: Сумма ответов: | C47: =C44+C45+C46 -> 80 | E47: 0
A48: Доля удовлетворённых по показателю 5.3.: | D48: =D45/C47*100 -> 78.75 | F48: =F45/E47*100 -> 
